[Event "*** Titled Tuesday 3|2 Blitz"]
[Site "Chess.com"]
[Date "2016.03.01"]
[Round "4"]
[White "tigra"]
[Black "Goala"]
[Result "0-1"]
[WhiteElo "2404"]
[BlackElo "2255"]
[TimeControl "180+2"]
[EndTime "17:42:35 PST"]
[Termination "Goala won by checkmate"]

1. e4 {[%clk 0:03:01.9]} 1... e6 {[%clk 0:03:01.1]} 2. d4 {[%clk 0:03:02.2]}
2... d5 {[%clk 0:03:01.9]} 3. Nc3 {[%clk 0:03:03.8]} 3... Nf6 {[%clk 0:03:03.2]}
4. e5 {[%clk 0:03:04.1]} 4... Nfd7 {[%clk 0:03:02.9]} 5. f4 {[%clk 0:03:05.6]}
5... c5 {[%clk 0:03:04.6]} 6. Nf3 {[%clk 0:03:07.2]} 6... Nc6 {[%clk 0:03:06.1]}
7. Be3 {[%clk 0:03:08.9]} 7... cxd4 {[%clk 0:03:07.8]} 8. Nxd4 {[%clk
0:03:09.5]} 8... Bc5 {[%clk 0:03:09.5]} 9. Qd3 {[%clk 0:03:10.3]} 9... O-O
{[%clk 0:02:54.6]} 10. O-O-O {[%clk 0:03:10.4]} 10... a6 {[%clk 0:02:53.3]} 11.
Kb1 {[%clk 0:03:09.3]} 11... Bxd4 {[%clk 0:02:53.6]} 12. Bxd4 {[%clk 0:03:10.2]}
12... b5 {[%clk 0:02:55.4]} 13. Be3 {[%clk 0:03:09.5]} 13... b4 {[%clk
0:02:55.4]} 14. Na4 {[%clk 0:03:04.5]} 14... a5 {[%clk 0:02:53.3]} 15. Nc5
{[%clk 0:02:55.8]} 15... Re8 {[%clk 0:02:32.4]} 16. c4 {[%clk 0:02:33.4]} 16...
Nxc5 {[%clk 0:02:28.7]} 17. Bxc5 {[%clk 0:02:33.9]} 17... Ba6 {[%clk 0:02:30]}
18. Qe3 {[%clk 0:02:32.9]} 18... a4 {[%clk 0:01:29.8]} 19. cxd5 {[%clk 0:02:20]}
19... Bxf1 {[%clk 0:01:22.8]} 20. Rhxf1 {[%clk 0:02:18.9]} 20... exd5 {[%clk
0:01:23.5]} 21. Qf3 {[%clk 0:02:16.5]} 21... Rc8 {[%clk 0:00:37.9]} 22. Qxd5
{[%clk 0:02:14.3]} 22... Qh4 {[%clk 0:00:35.2]} 23. h3 {[%clk 0:02:04.3]} 23...
a3 {[%clk 0:00:36.1]} 24. b3 {[%clk 0:01:55.8]} 24... Red8 {[%clk 0:00:30.3]}
25. Bd6 {[%clk 0:01:54.1]} 25... Ne7 {[%clk 0:00:23.4]} 26. Qe4 {[%clk
0:01:52.2]} 26... Ng6 {[%clk 0:00:09.8]} 27. Bxb4 {[%clk 0:01:49.9]} 27... Rxd1+
{[%clk 0:00:07.2]} 28. Rxd1 {[%clk 0:01:50.3]} 28... Qf2 {[%clk 0:00:08.7]} 29.
Qc6 {[%clk 0:01:43.9]} 29... Qb2# {[%clk 0:00:07.1]} 0-1

[Event "*** Titled Tuesday 3|2 Blitz"]
[Site "Chess.com"]
[Date "2016.03.01"]
[Round "4"]
[White "Gau_truc_lon"]
[Black "Kawhi_Leonard2"]
[Result "0-1"]
[WhiteElo "2145"]
[BlackElo "2080"]
[TimeControl "180+2"]
[EndTime "17:42:35 PST"]
[Termination "Kawhi_Leonard2 won by resignation"]

1. e4 {[%clk 0:03:01.9]} 1... c5 {[%clk 0:03:00.4]} 2. Nf3 {[%clk 0:03:01.9]}
2... d6 {[%clk 0:03:01.4]} 3. c3 {[%clk 0:03:02.8]} 3... Nf6 {[%clk 0:02:59.7]}
4. h3 {[%clk 0:03:04.2]} 4... g6 {[%clk 0:02:55.8]} 5. Bd3 {[%clk 0:03:05.4]}
5... Bg7 {[%clk 0:02:56.7]} 6. Bc2 {[%clk 0:03:06.5]} 6... Nc6 {[%clk
0:02:56.6]} 7. O-O {[%clk 0:03:06.4]} 7... O-O {[%clk 0:02:56.5]} 8. a3 {[%clk
0:03:06.9]} 8... e5 {[%clk 0:02:54.6]} 9. d4 {[%clk 0:03:04.9]} 9... Qc7 {[%clk
0:02:26.6]} 10. d5 {[%clk 0:03:01.4]} 10... Ne7 {[%clk 0:02:22.1]} 11. b4 {[%clk
0:02:51.4]} 11... b6 {[%clk 0:02:18.9]} 12. a4 {[%clk 0:02:48.3]} 12... a5
{[%clk 0:02:18]} 13. b5 {[%clk 0:02:48.7]} 13... Ne8 {[%clk 0:02:15.2]} 14. Na3
{[%clk 0:02:30.1]} 14... h6 {[%clk 0:02:14.5]} 15. Nc4 {[%clk 0:02:30.6]} 15...
f5 {[%clk 0:02:12.7]} 16. exf5 {[%clk 0:02:31.4]} 16... gxf5 {[%clk 0:02:13.2]}
17. Ne1 {[%clk 0:02:22]} 17... Ng6 {[%clk 0:02:07.3]} 18. Qh5 {[%clk 0:02:15.3]}
18... Kh7 {[%clk 0:02:02.7]} 19. g4 {[%clk 0:02:01]} 19... Nf6 {[%clk
0:02:03.5]} 20. Qxf5 {[%clk 0:01:52.8]} 20... Bxf5 {[%clk 0:02:03.1]} 21. Bxf5
{[%clk 0:01:54.7]} 21... Ng8 {[%clk 0:02:00.5]} 22. Bc2 {[%clk 0:01:53]} 22...
Ne7 {[%clk 0:01:58.5]} 23. Ng2 {[%clk 0:01:42.8]} 23... Kh8 {[%clk 0:01:58]} 24.
Re1 {[%clk 0:01:42.1]} 24... Rf3 {[%clk 0:01:48.9]} 25. Nge3 {[%clk 0:01:38.3]}
25... Rxh3 {[%clk 0:01:46.2]} 26. Kg2 {[%clk 0:01:39.6]} 26... Nf4+ {[%clk
0:01:45.5]} 27. Kg1 {[%clk 0:01:40.9]} 27... Neg6 {[%clk 0:01:42.8]} 28. Be4
{[%clk 0:01:41]} 28... Rf8 {[%clk 0:01:36.9]} 29. Nf5 {[%clk 0:01:40.8]} 29...
Nh4 {[%clk 0:01:31.7]} 30. Ncxd6 {[%clk 0:01:31.9]} 30... Nxf5 {[%clk
0:01:30.6]} 31. Nxf5 {[%clk 0:01:33.8]} 31... Rxf5 {[%clk 0:01:12.5]} 32. Bxf5
{[%clk 0:01:34.6]} 32... Qd8 {[%clk 0:01:13.5]} 33. Bxf4 {[%clk 0:01:32.7]}
33... exf4 {[%clk 0:01:10.2]} 34. Kg2 {[%clk 0:01:34.2]} 34... Qh4 {[%clk
0:01:08.7]} 35. Re8+ {[%clk 0:01:34.3]} 35... Bf8 {[%clk 0:01:08.9]} 36. Rxf8+
{[%clk 0:01:35.1]} 36... Kg7 {[%clk 0:01:10.6]} 0-1

[Event "*** Titled Tuesday 3|2 Blitz"]
[Site "Chess.com"]
[Date "2016.03.01"]
[Round "4"]
[White "hermionegrangermagic"]
[Black "Titus369"]
[Result "1-0"]
[WhiteElo "2309"]
[BlackElo "2264"]
[TimeControl "180+2"]
[EndTime "17:42:47 PST"]
[Termination "hermionegrangermagic won by resignation"]

1. e4 {[%clk 0:03:01.9]} 1... c5 {[%clk 0:02:58.9]} 2. Nf3 {[%clk 0:03:02.2]}
2... d6 {[%clk 0:02:59.8]} 3. d4 {[%clk 0:03:02.7]} 3... cxd4 {[%clk 0:03:01.7]}
4. Nxd4 {[%clk 0:03:04]} 4... Nf6 {[%clk 0:03:03.4]} 5. Nc3 {[%clk 0:03:05.3]}
5... a6 {[%clk 0:03:05]} 6. a4 {[%clk 0:03:06.3]} 6... e6 {[%clk 0:03:05.3]} 7.
Be2 {[%clk 0:03:06.8]} 7... Nbd7 {[%clk 0:03:06.3]} 8. f4 {[%clk 0:03:04.2]}
8... b6 {[%clk 0:03:07]} 9. O-O {[%clk 0:03:01.3]} 9... Bb7 {[%clk 0:03:08.1]}
10. Bf3 {[%clk 0:03:02.4]} 10... Qc7 {[%clk 0:03:04.5]} 11. Qe1 {[%clk 0:02:56]}
11... Be7 {[%clk 0:03:03.2]} 12. Be3 {[%clk 0:02:55.7]} 12... O-O {[%clk
0:03:03.1]} 13. Qg3 {[%clk 0:02:53.2]} 13... Nc5 {[%clk 0:02:53.8]} 14. e5
{[%clk 0:02:39.1]} 14... dxe5 {[%clk 0:02:49]} 15. fxe5 {[%clk 0:02:35.4]} 15...
Ne8 {[%clk 0:02:48.5]} 16. Bxb7 {[%clk 0:01:37.3]} 16... Nxb7 {[%clk 0:02:47.3]}
17. Ne4 {[%clk 0:01:33.6]} 17... Nc5 {[%clk 0:02:38.6]} 18. Ng5 {[%clk
0:01:25.8]} 18... g6 {[%clk 0:02:09.4]} 19. Qh4 {[%clk 0:01:14.3]} 19... Bxg5
{[%clk 0:02:07.8]} 20. Qxg5 {[%clk 0:01:14.7]} 20... Nd7 {[%clk 0:02:04.1]} 21.
Bf4 {[%clk 0:01:09.4]} 21... Ng7 {[%clk 0:01:51.1]} 22. h3 {[%clk 0:00:54]}
22... Qd8 {[%clk 0:01:50.7]} 23. Qh6 {[%clk 0:00:51.7]} 23... f6 {[%clk
0:01:33.7]} 24. Qxg7+ {[%clk 0:00:47]} 24... Kxg7 {[%clk 0:01:33.2]} 25. Nxe6+
{[%clk 0:00:48.9]} 25... Kg8 {[%clk 0:01:33.8]} 26. Nxd8 {[%clk 0:00:50.3]}
26... Raxd8 {[%clk 0:01:29.3]} 27. e6 {[%clk 0:00:50.8]} 27... Rfe8 {[%clk
0:01:29.6]} 28. exd7 {[%clk 0:00:50.8]} 28... Rxd7 {[%clk 0:01:31.5]} 29. Rad1
{[%clk 0:00:45.8]} 29... Rde7 {[%clk 0:01:31.8]} 30. Rd6 {[%clk 0:00:43]} 30...
Re6 {[%clk 0:01:32.8]} 31. Rfd1 {[%clk 0:00:40]} 31... Kf7 {[%clk 0:01:32.1]}
32. Rxe6 {[%clk 0:00:39.6]} 32... Rxe6 {[%clk 0:01:34]} 33. Rd6 {[%clk
0:00:39.2]} 33... Rxd6 {[%clk 0:01:33]} 34. Bxd6 {[%clk 0:00:38.6]} 34... b5
{[%clk 0:01:34.9]} 35. axb5 {[%clk 0:00:38]} 35... axb5 {[%clk 0:01:36.8]} 1-0

[Event "*** Titled Tuesday 3|2 Blitz"]
[Site "Chess.com"]
[Date "2016.03.01"]
[Round "4"]
[White "LADIESGET2KNOWME"]
[Black "kikydu96"]
[Result "0-1"]
[WhiteElo "2358"]
[BlackElo "2278"]
[TimeControl "180+2"]
[EndTime "17:42:53 PST"]
[Termination "kikydu96 won by resignation"]

1. d4 {[%clk 0:03:01.9]} 1... d5 {[%clk 0:03:00.7]} 2. Nc3 {[%clk 0:03:03]} 2...
Nf6 {[%clk 0:03:00.1]} 3. Bg5 {[%clk 0:03:04.1]} 3... c6 {[%clk 0:02:59.8]} 4.
Qd3 {[%clk 0:03:01.8]} 4... g6 {[%clk 0:03:00.3]} 5. e4 {[%clk 0:03:01.6]} 5...
dxe4 {[%clk 0:02:59.9]} 6. Nxe4 {[%clk 0:03:02.6]} 6... Nxe4 {[%clk 0:02:55.9]}
7. Qxe4 {[%clk 0:03:03.3]} 7... Bg7 {[%clk 0:02:57]} 8. O-O-O {[%clk 0:03:00.2]}
8... Be6 {[%clk 0:02:51.3]} 9. Nf3 {[%clk 0:02:58]} 9... O-O {[%clk 0:02:46.3]}
10. Bd3 {[%clk 0:02:50.6]} 10... Re8 {[%clk 0:02:44.9]} 11. Kb1 {[%clk
0:02:48.3]} 11... Qa5 {[%clk 0:02:40.3]} 12. c4 {[%clk 0:02:41.1]} 12... b5
{[%clk 0:02:28.1]} 13. Bd2 {[%clk 0:02:15.7]} 13... Qa6 {[%clk 0:02:19.6]} 14.
d5 {[%clk 0:02:02.4]} 14... Bf5 {[%clk 0:02:17.1]} 15. Qe2 {[%clk 0:01:59.3]}
15... Bxd3+ {[%clk 0:02:14.8]} 16. Qxd3 {[%clk 0:02:01.2]} 16... bxc4 {[%clk
0:02:16]} 17. Qe4 {[%clk 0:01:57.9]} 17... Qb5 {[%clk 0:02:13.5]} 18. Bc1 {[%clk
0:01:52.9]} 18... c3 {[%clk 0:02:08.3]} 19. d6 {[%clk 0:00:59.9]} 19... Nd7
{[%clk 0:01:50.7]} 20. dxe7 {[%clk 0:00:59.5]} 20... Nc5 {[%clk 0:01:50]} 21.
Qf4 {[%clk 0:00:45.1]} 21... Nd3 {[%clk 0:01:41.2]} 22. Qe3 {[%clk 0:00:21.2]}
22... Nxb2 {[%clk 0:01:37.5]} 23. Nd4 {[%clk 0:00:13.2]} 23... Nxd1+ {[%clk
0:01:18.7]} 24. Nxb5 {[%clk 0:00:13.4]} 24... Nxe3 {[%clk 0:01:20.3]} 25. Bxe3
{[%clk 0:00:02.5]} 25... cxb5 {[%clk 0:01:20.3]} 0-1

[Event "*** Titled Tuesday 3|2 Blitz"]
[Site "Chess.com"]
[Date "2016.03.01"]
[Round "4"]
[White "GrigorGrigorov"]
[Black "pKiLz5Rn9b"]
[Result "1-0"]
[WhiteElo "2529"]
[BlackElo "2491"]
[TimeControl "180+2"]
[EndTime "17:43:38 PST"]
[Termination "GrigorGrigorov won by resignation"]

1. d4 {[%clk 0:03:01.9]} 1... e6 {[%clk 0:03:01.2]} 2. c4 {[%clk 0:02:59.8]}
2... Nf6 {[%clk 0:03:02.2]} 3. Nf3 {[%clk 0:02:59.6]} 3... b6 {[%clk 0:03:03.1]}
4. g3 {[%clk 0:03:00.1]} 4... Bb7 {[%clk 0:03:04.1]} 5. Bg2 {[%clk 0:03:01.1]}
5... d5 {[%clk 0:03:05]} 6. O-O {[%clk 0:02:55.2]} 6... Be7 {[%clk 0:03:05.9]}
7. Nc3 {[%clk 0:02:49.7]} 7... O-O {[%clk 0:03:06.7]} 8. cxd5 {[%clk 0:02:41.3]}
8... exd5 {[%clk 0:03:07.7]} 9. Bf4 {[%clk 0:02:41.2]} 9... Na6 {[%clk
0:03:09.2]} 10. a3 {[%clk 0:02:35.5]} 10... c5 {[%clk 0:03:09.3]} 11. dxc5
{[%clk 0:02:22.9]} 11... bxc5 {[%clk 0:03:10.4]} 12. Rc1 {[%clk 0:02:22.2]}
12... d4 {[%clk 0:03:10.4]} 13. Na4 {[%clk 0:02:13.1]} 13... Re8 {[%clk
0:03:03.4]} 14. b4 {[%clk 0:02:07]} 14... cxb4 {[%clk 0:02:53.5]} 15. axb4
{[%clk 0:02:08]} 15... Nxb4 {[%clk 0:02:53.6]} 16. Qxd4 {[%clk 0:02:07.2]} 16...
Qxd4 {[%clk 0:02:44.6]} 17. Nxd4 {[%clk 0:02:07.3]} 17... Bxg2 {[%clk
0:02:46.3]} 18. Kxg2 {[%clk 0:02:08.4]} 18... Nfd5 {[%clk 0:02:48.2]} 19. Bd2
{[%clk 0:02:05.7]} 19... a5 {[%clk 0:02:49.6]} 20. e4 {[%clk 0:02:00]} 20... Nf6
{[%clk 0:02:50.9]} 21. f3 {[%clk 0:01:58.2]} 21... Red8 {[%clk 0:02:52.2]} 22.
Be3 {[%clk 0:01:54]} 22... Rac8 {[%clk 0:02:52.6]} 23. Nf5 {[%clk 0:01:44]}
23... Bf8 {[%clk 0:02:51]} 24. Bb6 {[%clk 0:01:37.6]} 24... Rd2+ {[%clk
0:02:38.7]} 25. Kh3 {[%clk 0:01:37.7]} 25... Rxc1 {[%clk 0:02:28.6]} 26. Rxc1
{[%clk 0:01:37.4]} 26... g6 {[%clk 0:02:30.3]} 27. Ne3 {[%clk 0:00:40.9]} 27...
Nd3 {[%clk 0:02:31.6]} 28. Rc8 {[%clk 0:00:39.7]} 28... Kg7 {[%clk 0:02:28.4]}
29. Nc4 {[%clk 0:00:37.4]} 29... Rc2 {[%clk 0:02:22.4]} 30. Nd6 {[%clk
0:00:27.5]} 30... Ra2 {[%clk 0:02:22.1]} 31. Nc3 {[%clk 0:00:23.2]} 31... Rb2
{[%clk 0:02:23.3]} 32. Bd4 {[%clk 0:00:20.6]} 32... Nf2+ {[%clk 0:02:24.6]} 33.
Kh4 {[%clk 0:00:19.5]} 33... Nxe4 {[%clk 0:02:22.7]} 34. Ncxe4 {[%clk
0:00:19.5]} 34... Rxh2+ {[%clk 0:02:22.4]} 35. Kg5 {[%clk 0:00:20.8]} 35... h6+
{[%clk 0:02:17.8]} 36. Kf4 {[%clk 0:00:21.7]} 36... Bxd6+ {[%clk 0:02:15]} 37.
Nxd6 {[%clk 0:00:22.4]} 37... Rd2 {[%clk 0:02:10.4]} 38. Ne8+ {[%clk 0:00:23]}
38... Kf8 {[%clk 0:02:09.6]} 39. Nxf6+ {[%clk 0:00:23.1]} 39... Ke7 {[%clk
0:02:10.7]} 40. Be5 {[%clk 0:00:23.2]} 40... Rd8 {[%clk 0:02:05]} 41. Rxd8
{[%clk 0:00:22.6]} 41... Kxd8 {[%clk 0:02:06]} 42. Nd5 {[%clk 0:00:23.5]} 42...
Kd7 {[%clk 0:02:06.8]} 43. Nb6+ {[%clk 0:00:23.7]} 43... Kc6 {[%clk 0:02:08]}
44. Nc4 {[%clk 0:00:24.5]} 44... a4 {[%clk 0:02:08.7]} 45. Na3 {[%clk
0:00:25.1]} 45... Kc5 {[%clk 0:02:09.9]} 46. Bg7 {[%clk 0:00:25.7]} 46... Kb4
{[%clk 0:02:08.9]} 47. Bf8+ {[%clk 0:00:25.8]} 47... Kb3 {[%clk 0:02:10]} 48.
Ke5 {[%clk 0:00:26.7]} 48... Kc3 {[%clk 0:02:06.6]} 49. Kf6 {[%clk 0:00:25.7]}
49... Kd3 {[%clk 0:02:08.1]} 50. Kxf7 {[%clk 0:00:26.9]} 50... Ke3 {[%clk
0:02:08.7]} 51. Kxg6 {[%clk 0:00:27.2]} 51... Kxf3 {[%clk 0:02:09.7]} 52. Bd6
{[%clk 0:00:28.4]} 1-0

[Event "*** Titled Tuesday 3|2 Blitz"]
[Site "Chess.com"]
[Date "2016.03.01"]
[Round "4"]
[White "MITerryble"]
[Black "GianmarcoVaR"]
[Result "1-0"]
[WhiteElo "2658"]
[BlackElo "2365"]
[TimeControl "180+2"]
[EndTime "17:44:12 PST"]
[Termination "MITerryble won by resignation"]

1. d4 {[%clk 0:03:01.9]} 1... Nf6 {[%clk 0:03:00.6]} 2. Nf3 {[%clk 0:03:02.4]}
2... e6 {[%clk 0:02:59.9]} 3. c4 {[%clk 0:03:02.9]} 3... b6 {[%clk 0:02:50.1]}
4. g3 {[%clk 0:03:03.8]} 4... Bb7 {[%clk 0:02:51.1]} 5. Bg2 {[%clk 0:03:03.9]}
5... Be7 {[%clk 0:02:52.6]} 6. Nc3 {[%clk 0:03:04.5]} 6... Ne4 {[%clk 0:02:51]}
7. Qc2 {[%clk 0:03:03.8]} 7... Nxc3 {[%clk 0:02:50.4]} 8. Qxc3 {[%clk
0:03:02.5]} 8... O-O {[%clk 0:02:49.1]} 9. O-O {[%clk 0:02:53.6]} 9... c5 {[%clk
0:02:46.9]} 10. Rd1 {[%clk 0:02:53.4]} 10... d6 {[%clk 0:02:35.6]} 11. b3 {[%clk
0:02:43.3]} 11... cxd4 {[%clk 0:02:18.5]} 12. Nxd4 {[%clk 0:02:41.1]} 12... Bxg2
{[%clk 0:02:19.1]} 13. Kxg2 {[%clk 0:02:43]} 13... Qc8 {[%clk 0:02:14]} 14. Qf3
{[%clk 0:02:39.6]} 14... Nd7 {[%clk 0:02:01.1]} 15. Nc6 {[%clk 0:02:23.5]} 15...
Bf6 {[%clk 0:02:00.5]} 16. Ba3 {[%clk 0:02:13.6]} 16... Ne5 {[%clk 0:01:53.4]}
17. Nxe5 {[%clk 0:02:10.5]} 17... Bxe5 {[%clk 0:01:54.6]} 18. Bxd6 {[%clk
0:02:08.7]} 18... Bxa1 {[%clk 0:01:48.6]} 19. Bxf8 {[%clk 0:02:08.9]} 19... Qxf8
{[%clk 0:01:49.8]} 20. Rxa1 {[%clk 0:02:09.4]} 20... Rd8 {[%clk 0:01:51.2]} 21.
Rc1 {[%clk 0:01:59.2]} 21... Rd2 {[%clk 0:01:29.3]} 22. a4 {[%clk 0:01:58.4]}
22... h6 {[%clk 0:00:50]} 23. Rc3 {[%clk 0:01:47.3]} 23... Qb4 {[%clk
0:00:42.9]} 24. Rd3 {[%clk 0:01:47.6]} 24... Rxd3 {[%clk 0:00:43.5]} 25. Qxd3
{[%clk 0:01:47.8]} 25... a5 {[%clk 0:00:41.4]} 26. h4 {[%clk 0:01:44.3]} 26...
h5 {[%clk 0:00:39.1]} 27. Qf3 {[%clk 0:01:41.4]} 27... g6 {[%clk 0:00:35.5]} 28.
Qe3 {[%clk 0:01:41.9]} 28... Kf8 {[%clk 0:00:32]} 29. f3 {[%clk 0:01:42.6]}
29... Ke7 {[%clk 0:00:29.3]} 30. Qg5+ {[%clk 0:01:33.2]} 30... Kf8 {[%clk
0:00:26]} 31. Qe3 {[%clk 0:01:22.7]} 31... Ke7 {[%clk 0:00:26.8]} 32. g4 {[%clk
0:01:23.7]} 32... Qc5 {[%clk 0:00:09.9]} 33. Qf4 {[%clk 0:01:04.1]} 33... Qb4
{[%clk 0:00:03.8]} 34. gxh5 {[%clk 0:01:01.3]} 34... gxh5 {[%clk 0:00:05.1]} 35.
Qg5+ {[%clk 0:01:01.6]} 35... Ke8 {[%clk 0:00:06.5]} 36. Qxh5 {[%clk 0:00:59.5]}
36... Qxb3 {[%clk 0:00:07.7]} 37. Qb5+ {[%clk 0:00:59.6]} 37... Qxb5 {[%clk
0:00:06.9]} 38. cxb5 {[%clk 0:01:00.4]} 1-0

[Event "*** Titled Tuesday 3|2 Blitz"]
[Site "Chess.com"]
[Date "2016.03.01"]
[Round "4"]
[White "spectralsoul"]
[Black "jcibarra"]
[Result "1-0"]
[WhiteElo "2546"]
[BlackElo "2489"]
[TimeControl "180+2"]
[EndTime "17:45:18 PST"]
[Termination "spectralsoul won by resignation"]

1. g3 {[%clk 0:03:01.9]} 1... d5 {[%clk 0:03:00.4]} 2. Bg2 {[%clk 0:03:03.2]}
2... Nf6 {[%clk 0:03:01.2]} 3. Nf3 {[%clk 0:03:02.6]} 3... Bg4 {[%clk
0:03:00.3]} 4. d3 {[%clk 0:03:02.5]} 4... Nbd7 {[%clk 0:03:00.3]} 5. Nbd2 {[%clk
0:03:03.6]} 5... e5 {[%clk 0:03:00.6]} 6. h3 {[%clk 0:03:05]} 6... Bh5 {[%clk
0:02:57.7]} 7. g4 {[%clk 0:03:06.2]} 7... Bg6 {[%clk 0:02:58.5]} 8. Nh4 {[%clk
0:03:07.4]} 8... c6 {[%clk 0:02:57.5]} 9. e3 {[%clk 0:03:05.6]} 9... Bd6 {[%clk
0:02:54.1]} 10. O-O {[%clk 0:03:05.3]} 10... O-O {[%clk 0:02:50.8]} 11. Qe1
{[%clk 0:03:01]} 11... Re8 {[%clk 0:02:45.1]} 12. Nxg6 {[%clk 0:02:55.3]} 12...
hxg6 {[%clk 0:02:45.5]} 13. b3 {[%clk 0:02:49.1]} 13... a5 {[%clk 0:02:43.4]}
14. a3 {[%clk 0:02:46]} 14... Nc5 {[%clk 0:02:36.6]} 15. Bb2 {[%clk 0:02:45.4]}
15... Ne6 {[%clk 0:02:28.6]} 16. Qd1 {[%clk 0:02:43.8]} 16... Qc7 {[%clk
0:02:21.3]} 17. c4 {[%clk 0:02:43.9]} 17... d4 {[%clk 0:02:10.3]} 18. Re1 {[%clk
0:02:22.9]} 18... Bc5 {[%clk 0:02:01.8]} 19. Kh1 {[%clk 0:02:17.5]} 19... Rad8
{[%clk 0:01:59.5]} 20. Qc2 {[%clk 0:02:15.8]} 20... dxe3 {[%clk 0:01:42.4]} 21.
fxe3 {[%clk 0:02:16.6]} 21... Qd6 {[%clk 0:01:43.9]} 22. Bf1 {[%clk 0:02:05.5]}
22... e4 {[%clk 0:01:30.9]} 23. d4 {[%clk 0:02:01.3]} 23... Ba7 {[%clk
0:01:26.6]} 24. Bg2 {[%clk 0:01:46.8]} 24... Ng5 {[%clk 0:01:18.9]} 25. Bc3
{[%clk 0:01:36.9]} 25... Bb8 {[%clk 0:01:04.3]} 26. Nf1 {[%clk 0:01:37.4]} 26...
Bc7 {[%clk 0:01:04.1]} 27. Qf2 {[%clk 0:01:34.2]} 27... Nf3 {[%clk 0:00:40.9]}
28. Re2 {[%clk 0:01:15.2]} 28... g5 {[%clk 0:00:32.1]} 29. a4 {[%clk 0:00:48.3]}
29... Nh4 {[%clk 0:00:31.1]} 30. Rb2 {[%clk 0:00:41.9]} 30... Re6 {[%clk
0:00:30]} 31. b4 {[%clk 0:00:41.8]} 31... Nxg4 {[%clk 0:00:24.7]} 32. hxg4
{[%clk 0:00:42.8]} 32... Rh6 {[%clk 0:00:25.6]} 33. Kg1 {[%clk 0:00:40.5]} 33...
Qe6 {[%clk 0:00:23.5]} 34. Qe2 {[%clk 0:00:41.8]} 34... f5 {[%clk 0:00:19]} 35.
d5 {[%clk 0:00:32.3]} 35... cxd5 {[%clk 0:00:19.4]} 36. cxd5 {[%clk 0:00:33.4]}
36... Rxd5 {[%clk 0:00:21.3]} 37. Qc4 {[%clk 0:00:28.6]} 37... Bb8 {[%clk
0:00:09.1]} 38. gxf5 {[%clk 0:00:25.5]} 38... Qxf5 {[%clk 0:00:05.5]} 39. Qxe4
{[%clk 0:00:23.8]} 39... Qxe4 {[%clk 0:00:04.2]} 40. Bxe4 {[%clk 0:00:24.8]}
40... Rd7 {[%clk 0:00:06.1]} 41. Rd2 {[%clk 0:00:21]} 41... Re7 {[%clk
0:00:07.4]} 42. Rd8+ {[%clk 0:00:21]} 42... Kf7 {[%clk 0:00:07.7]} 43. Bd5+
{[%clk 0:00:22.4]} 43... Kg6 {[%clk 0:00:09]} 44. Rxb8 {[%clk 0:00:23.7]} 44...
g4 {[%clk 0:00:10.2]} 45. Bd4 {[%clk 0:00:22.3]} 45... Nf5 {[%clk 0:00:10.8]}
46. Rxb7 {[%clk 0:00:19.3]} 46... Re8 {[%clk 0:00:12]} 47. Bf7+ {[%clk
0:00:18.9]} 1-0